[Event "Titled Tuesday Blitz March 22 Late 2022"]
[White "Zhigalko, Sergei"]
[Black "Sarana, Alexey"]
[WhiteFideId "13502956"]
[BlackFideId "24133795"]
[WhiteElo "2662"]
[BlackElo "2666"]
[Result "0-1"]
[Round "04"]
[TimeControl "180+1"]
[Date "2022.03.22"]
[WhiteClock "0:00:04"]
[BlackClock "0:00:21"]

1. e4 {[%clk 0:03:00]}  c5 {[%clk 0:03:00]} 2. Nf3 {[%clk 0:03:00]}  d6 {[%clk 0:03:00]} 3. d4 {[%clk 0:03:00]}  Nf6 {[%clk 0:03:00]} 4. Nc3 {[%clk 0:03:00]}  cxd4 {[%clk 0:03:01]} 5. Qxd4 {[%clk 0:03:01]}  Nc6 {[%clk 0:03:01]} 6. Bb5 {[%clk 0:03:01]}  Bd7 {[%clk 0:03:02]} 7. Bxc6 {[%clk 0:03:00]}  Bxc6 {[%clk 0:03:02]} 8. Bg5 {[%clk 0:03:01]}  e6 {[%clk 0:03:03]} 9. O-O-O {[%clk 0:03:01]}  Be7 {[%clk 0:03:04]} 10. Rhe1 {[%clk 0:03:02]}  O-O {[%clk 0:03:03]} 11. Kb1 {[%clk 0:03:02]}  Qa5 {[%clk 0:03:02]} 12. Qd2 {[%clk 0:03:02]}  Rfd8 {[%clk 0:02:47]} 13. Nd4 {[%clk 0:02:56]}  h6 {[%clk 0:02:43]} 14. Nd5 {[%clk 0:02:51]}  Qxd2 {[%clk 0:02:37]} 15. Nxe7+ {[%clk 0:02:51]}  Kf8 {[%clk 0:02:37]} 16. Ng6+ {[%clk 0:02:40]}  fxg6 {[%clk 0:02:37]} 17. Bxd2 {[%clk 0:02:40]}  Kf7 {[%clk 0:02:31]} 18. f3 {[%clk 0:02:34]}  e5 {[%clk 0:02:31]} 19. Ne2 {[%clk 0:02:31]}  d5 {[%clk 0:02:23]} 20. exd5 {[%clk 0:02:29]}  Nxd5 {[%clk 0:02:24]} 21. Nc1 {[%clk 0:01:57]}  Nf4 {[%clk 0:02:18]} 22. Bxf4 {[%clk 0:01:06]}  exf4 {[%clk 0:02:19]} 23. Nd3 {[%clk 0:01:05]}  g5 {[%clk 0:02:19]} 24. Ne5+ {[%clk 0:00:56]}  Kf6 {[%clk 0:02:19]} 25. Nxc6 {[%clk 0:00:57]}  bxc6 {[%clk 0:02:19]} 26. Kc1 {[%clk 0:00:45]}  h5 {[%clk 0:02:19]} 27. Re4 {[%clk 0:00:45]}  Rxd1+ {[%clk 0:02:03]} 28. Kxd1 {[%clk 0:00:45]}  Rd8+ {[%clk 0:02:03]} 29. Ke2 {[%clk 0:00:44]}  Rd5 {[%clk 0:02:04]} 30. Rc4 {[%clk 0:00:43]}  c5 {[%clk 0:01:47]} 31. Ra4 {[%clk 0:00:43]}  Rd7 {[%clk 0:01:47]} 32. Ra6+ {[%clk 0:00:35]}  Ke5 {[%clk 0:01:47]} 33. Rg6 {[%clk 0:00:27]}  Kf5 {[%clk 0:01:47]} 34. Rc6 {[%clk 0:00:24]}  Rd5 {[%clk 0:01:43]} 35. Rc7 {[%clk 0:00:24]}  Re5+ {[%clk 0:01:44]} 36. Kf2 {[%clk 0:00:25]}  Rd5 {[%clk 0:01:44]} 37. Ke2 {[%clk 0:00:25]}  Re5+ {[%clk 0:01:44]} 38. Kd2 {[%clk 0:00:25]}  a5 {[%clk 0:01:30]} 39. Rxg7 {[%clk 0:00:23]}  g4 {[%clk 0:01:30]} 40. Rf7+ {[%clk 0:00:12]}  Kg5 {[%clk 0:01:31]} 41. g3 {[%clk 0:00:08]}  Rd5+ {[%clk 0:01:15]} 42. Ke2 {[%clk 0:00:08]}  gxf3+ {[%clk 0:01:07]} 43. Kxf3 {[%clk 0:00:09]}  fxg3 {[%clk 0:01:07]} 44. hxg3 {[%clk 0:00:07]}  Rd2 {[%clk 0:01:07]} 45. Rb7 {[%clk 0:00:04]}  Rxc2 {[%clk 0:01:06]} 46. Rb5 {[%clk 0:00:04]}  a4 {[%clk 0:01:07]} 47. b4 {[%clk 0:00:03]}  Rc3+ {[%clk 0:01:02]} 48. Kf2 {[%clk 0:00:03]}  Rc2+ {[%clk 0:00:56]} 49. Kf3 {[%clk 0:00:03]}  Rc3+ {[%clk 0:00:56]} 50. Kf2 {[%clk 0:00:03]}  Kg4 {[%clk 0:00:56]} 51. Rxc5 {[%clk 0:00:04]}  Rf3+ {[%clk 0:00:57]} 52. Ke2 {[%clk 0:00:01]}  Ra3 {[%clk 0:00:47]} 53. Rc2 {[%clk 0:00:01]}  Rxg3 {[%clk 0:00:43]} 54. Rc4+ {[%clk 0:00:01]}  Kh3 {[%clk 0:00:40]} 55. b5 {[%clk 0:00:02]}  Rg2+ {[%clk 0:00:40]} 56. Kd3 {[%clk 0:00:02]}  Rxa2 {[%clk 0:00:41]} 57. Rb4 {[%clk 0:00:03]}  a3 {[%clk 0:00:28]} 58. b6 {[%clk 0:00:03]}  Rg2 {[%clk 0:00:24]} 59. b7 {[%clk 0:00:03]}  a2 {[%clk 0:00:25]} 60. Ra4 {[%clk 0:00:02]}  Rb2 {[%clk 0:00:25]} 61. Rxa2 {[%clk 0:00:02]}  Rxb7 {[%clk 0:00:25]} 62. Ke4 {[%clk 0:00:02]}  Rb3 {[%clk 0:00:22]} 63. Kf4 {[%clk 0:00:01]}  h4 {[%clk 0:00:22]} 64. Rd2 {[%clk 0:00:02]}  Ra3 {[%clk 0:00:22]} 65. Re2 {[%clk 0:00:01]}  Rd3 {[%clk 0:00:22]} 66. Rc2 {[%clk 0:00:01]}  Rb3 {[%clk 0:00:21]} 67. Ra2 {[%clk 0:00:02]}  Rg3 {[%clk 0:00:19]} 68. Rc2 {[%clk 0:00:02]}  Rg1 {[%clk 0:00:19]} 69. Kf3 {[%clk 0:00:02]}  Rf1+ {[%clk 0:00:20]} 70. Ke4 {[%clk 0:00:01]}  Kg3 {[%clk 0:00:18]} 71. Rc3+ {[%clk 0:00:02]}  Kg2 {[%clk 0:00:19]} 72. Rc2+ {[%clk 0:00:02]}  Rf2 {[%clk 0:00:19]} 73. Rc8 {[%clk 0:00:02]}  h3 {[%clk 0:00:19]} 74. Rg8+ {[%clk 0:00:02]}  Kf1 {[%clk 0:00:19]} 75. Ke3 {[%clk 0:00:02]}  h2 {[%clk 0:00:19]} 76. Rh8 {[%clk 0:00:03]}  Kg1 {[%clk 0:00:19]} 77. Rg8+ {[%clk 0:00:03]}  Rg2 {[%clk 0:00:20]} 78. Rb8 {[%clk 0:00:03]}  h1=Q {[%clk 0:00:20]} 79. Rb1+ {[%clk 0:00:04]}  Kh2 {[%clk 0:00:21]} 0-1


[Site "https://www.chess.com"]

[Event "Titled Tuesday Blitz March 22 Late 2022"]
[White "Adewumi, Tanitoluwa"]
[Black "Pichot, Alan"]
[WhiteFideId "30966396"]
[BlackFideId "110973"]
[WhiteElo "2539"]
[BlackElo "2579"]
[Result "0-1"]
[Round "05"]
[TimeControl "180+1"]
[Date "2022.03.22"]
[WhiteClock "0:00:02"]
[BlackClock "0:01:22"]

1. e4 {[%clk 0:03:00]}  g6 {[%clk 0:02:55]} 2. d4 {[%clk 0:02:59]}  Bg7 {[%clk 0:02:55]} 3. Nf3 {[%clk 0:02:56]}  d6 {[%clk 0:02:56]} 4. Nc3 {[%clk 0:02:54]}  Nf6 {[%clk 0:02:36]} 5. Bc4 {[%clk 0:02:54]}  O-O {[%clk 0:02:35]} 6. O-O {[%clk 0:02:53]}  c6 {[%clk 0:02:30]} 7. h3 {[%clk 0:02:47]}  d5 {[%clk 0:02:30]} 8. Bd3 {[%clk 0:02:45]}  dxe4 {[%clk 0:02:26]} 9. Nxe4 {[%clk 0:02:44]}  Nxe4 {[%clk 0:02:27]} 10. Bxe4 {[%clk 0:02:45]}  Nd7 {[%clk 0:02:28]} 11. Re1 {[%clk 0:02:39]}  Nf6 {[%clk 0:02:01]} 12. Bd3 {[%clk 0:02:39]}  b6 {[%clk 0:02:02]} 13. Qe2 {[%clk 0:02:25]}  e6 {[%clk 0:02:01]} 14. Bg5 {[%clk 0:02:21]}  Bb7 {[%clk 0:02:01]} 15. Rad1 {[%clk 0:02:21]}  Qc7 {[%clk 0:02:02]} 16. c3 {[%clk 0:01:47]}  c5 {[%clk 0:02:01]} 17. Bxf6 {[%clk 0:01:41]}  Bxf6 {[%clk 0:01:58]} 18. Be4 {[%clk 0:01:41]}  Rad8 {[%clk 0:01:57]} 19. Bxb7 {[%clk 0:01:36]}  Qxb7 {[%clk 0:01:58]} 20. dxc5 {[%clk 0:01:36]}  bxc5 {[%clk 0:01:59]} 21. Qc2 {[%clk 0:01:25]}  Kg7 {[%clk 0:01:34]} 22. b3 {[%clk 0:01:23]}  a5 {[%clk 0:01:32]} 23. c4 {[%clk 0:01:12]}  Qb4 {[%clk 0:01:32]} 24. Rxd8 {[%clk 0:00:54]}  Rxd8 {[%clk 0:01:33]} 25. Rd1 {[%clk 0:00:54]}  Ra8 {[%clk 0:01:27]} 26. Nd2 {[%clk 0:00:49]}  a4 {[%clk 0:01:26]} 27. Ne4 {[%clk 0:00:49]}  Bd4 {[%clk 0:01:27]} 28. Kf1 {[%clk 0:00:29]}  axb3 {[%clk 0:01:26]} 29. axb3 {[%clk 0:00:30]}  Ra3 {[%clk 0:01:26]} 30. Rb1 {[%clk 0:00:28]}  Qa5 {[%clk 0:01:27]} 31. Qd2 {[%clk 0:00:27]}  Qa8 {[%clk 0:01:25]} 32. f3 {[%clk 0:00:25]}  Ra2 {[%clk 0:01:25]} 33. Qd3 {[%clk 0:00:15]}  Qb8 {[%clk 0:01:26]} 34. g3 {[%clk 0:00:06]}  Qe5 {[%clk 0:01:24]} 35. f4 {[%clk 0:00:06]}  Qf5 {[%clk 0:01:23]} 36. Qf3 {[%clk 0:00:01]}  Qxh3+ {[%clk 0:01:22]} 37. Ke1 {[%clk 0:00:02]}  Qh2 {[%clk 0:01:23]} 38. b4 {[%clk 0:00:01]}  Qg1+ {[%clk 0:01:23]} 39. Qf1 {[%clk 0:00:01]}  Qe3+ {[%clk 0:01:23]} 40. Kd1 {[%clk 0:00:02]}  Qxe4 {[%clk 0:01:22]} 0-1


[Site "https://www.chess.com"]

[Event "Titled Tuesday Blitz March 22 Late 2022"]
[White "Aldokhin, Ivan"]
[Black "Perez Torres, Nabi Isaias"]
[WhiteFideId "24115720"]
[BlackFideId "5120373"]
[WhiteElo "2231"]
[BlackElo "1755"]
[Result "0-1"]
[Round "05"]
[TimeControl "180+1"]
[Date "2022.03.22"]
[WhiteClock "0:00:04"]
[BlackClock "0:00:10"]

1. e4 {[%clk 0:02:58]}  c5 {[%clk 0:02:59]} 2. Nf3 {[%clk 0:02:58]}  d6 {[%clk 0:02:59]} 3. d4 {[%clk 0:02:56]}  cxd4 {[%clk 0:03:00]} 4. Nxd4 {[%clk 0:02:55]}  Nf6 {[%clk 0:03:01]} 5. Nc3 {[%clk 0:02:53]}  g6 {[%clk 0:03:01]} 6. Bc4 {[%clk 0:02:53]}  Bg7 {[%clk 0:03:02]} 7. h3 {[%clk 0:02:53]}  Nc6 {[%clk 0:03:01]} 8. Be3 {[%clk 0:02:53]}  O-O {[%clk 0:03:01]} 9. Bb3 {[%clk 0:02:53]}  Bd7 {[%clk 0:02:59]} 10. O-O {[%clk 0:02:53]}  Rc8 {[%clk 0:02:59]} 11. f4 {[%clk 0:02:53]}  Na5 {[%clk 0:02:53]} 12. e5 {[%clk 0:02:53]}  Rxc3 {[%clk 0:01:47]} 13. bxc3 {[%clk 0:02:45]}  Ne4 {[%clk 0:01:42]} 14. Qf3 {[%clk 0:02:28]}  Nxc3 {[%clk 0:01:17]} 15. exd6 {[%clk 0:02:05]}  exd6 {[%clk 0:01:16]} 16. f5 {[%clk 0:02:04]}  Be5 {[%clk 0:00:35]} 17. fxg6 {[%clk 0:01:53]}  hxg6 {[%clk 0:00:34]} 18. Rae1 {[%clk 0:01:36]}  Nxb3 {[%clk 0:00:32]} 19. axb3 {[%clk 0:01:30]}  b6 {[%clk 0:00:30]} 20. Kh1 {[%clk 0:01:11]}  Qc8 {[%clk 0:00:25]} 21. Bg1 {[%clk 0:01:06]}  b5 {[%clk 0:00:21]} 22. b4 {[%clk 0:00:59]}  Qc4 {[%clk 0:00:19]} 23. Qf2 {[%clk 0:00:23]}  Nd5 {[%clk 0:00:16]} 24. Nf3 {[%clk 0:00:19]}  Bg7 {[%clk 0:00:14]} 25. Rd1 {[%clk 0:00:17]}  Nf4 {[%clk 0:00:13]} 26. Rxd6 {[%clk 0:00:15]}  Be6 {[%clk 0:00:12]} 27. Ng5 {[%clk 0:00:15]}  Be5 {[%clk 0:00:09]} 28. Rd4 {[%clk 0:00:08]}  Bxd4 {[%clk 0:00:07]} 29. Qxd4 {[%clk 0:00:08]}  Qxd4 {[%clk 0:00:07]} 30. Bxd4 {[%clk 0:00:08]}  Ne2 {[%clk 0:00:08]} 31. Be5 {[%clk 0:00:04]}  Bd5 {[%clk 0:00:07]} 32. Re1 {[%clk 0:00:02]}  Re8 {[%clk 0:00:07]} 33. Bh2 {[%clk 0:00:02]}  f6 {[%clk 0:00:07]} 34. Nf3 {[%clk 0:00:02]}  Kf7 {[%clk 0:00:07]} 35. Rd1 {[%clk 0:00:02]}  Bxf3 {[%clk 0:00:07]} 36. gxf3 {[%clk 0:00:02]}  Nc3 {[%clk 0:00:08]} 37. Rd7+ {[%clk 0:00:02]}  Ke6 {[%clk 0:00:08]} 38. Rxa7 {[%clk 0:00:03]}  Kf5 {[%clk 0:00:09]} 39. Rb7 {[%clk 0:00:03]}  Re2 {[%clk 0:00:09]} 40. Bg1 {[%clk 0:00:03]}  Kf4 {[%clk 0:00:09]} 41. Rb6 {[%clk 0:00:03]}  f5 {[%clk 0:00:09]} 42. Rxg6 {[%clk 0:00:04]}  Kxf3 {[%clk 0:00:09]} 43. h4 {[%clk 0:00:04]}  f4 {[%clk 0:00:10]} 0-1


[Site "https://www.chess.com"]

[Event "Titled Tuesday Blitz March 22 Late 2022"]
[White "Al-Tarboush, Ward"]
[Black "Avazkhonov, Alikhon"]
[WhiteFideId "7601450"]
[BlackFideId "14208504"]
[WhiteElo "2276"]
[BlackElo "1739"]
[Result "1-0"]
[Round "05"]
[TimeControl "180+1"]
[Date "2022.03.22"]
[WhiteClock "0:00:14"]
[BlackClock "0:00:04"]

1. e4 {[%clk 0:03:00]}  c5 {[%clk 0:02:41]} 2. Nf3 {[%clk 0:03:00]}  d6 {[%clk 0:02:41]} 3. d4 {[%clk 0:02:59]}  cxd4 {[%clk 0:02:42]} 4. Nxd4 {[%clk 0:03:00]}  Nf6 {[%clk 0:02:42]} 5. Nc3 {[%clk 0:03:00]}  a6 {[%clk 0:02:42]} 6. h3 {[%clk 0:03:00]}  e5 {[%clk 0:02:42]} 7. Nde2 {[%clk 0:03:00]}  h5 {[%clk 0:02:43]} 8. Bg5 {[%clk 0:02:55]}  Be6 {[%clk 0:02:42]} 9. a4 {[%clk 0:02:54]}  Nbd7 {[%clk 0:02:41]} 10. g3 {[%clk 0:02:53]}  g6 {[%clk 0:02:20]} 11. Bg2 {[%clk 0:02:51]}  Qc7 {[%clk 0:02:17]} 12. O-O {[%clk 0:02:50]}  Bh6 {[%clk 0:02:14]} 13. Bxh6 {[%clk 0:02:50]}  Rxh6 {[%clk 0:02:15]} 14. Qd2 {[%clk 0:02:50]}  Rh8 {[%clk 0:02:11]} 15. Rad1 {[%clk 0:02:49]}  Ke7 {[%clk 0:01:37]} 16. f4 {[%clk 0:02:47]}  exf4 {[%clk 0:00:46]} 17. Nxf4 {[%clk 0:02:43]}  Rag8 {[%clk 0:00:43]} 18. Nd3 {[%clk 0:02:06]}  g5 {[%clk 0:00:23]} 19. Qf2 {[%clk 0:02:06]}  Rg6 {[%clk 0:00:18]} 20. Kh1 {[%clk 0:01:44]}  Ne5 {[%clk 0:00:18]} 21. Nxe5 {[%clk 0:01:39]}  dxe5 {[%clk 0:00:19]} 22. Nd5+ {[%clk 0:01:25]}  Bxd5 {[%clk 0:00:17]} 23. exd5 {[%clk 0:01:26]}  Qd6 {[%clk 0:00:12]} 24. c4 {[%clk 0:01:21]}  Rc8 {[%clk 0:00:12]} 25. Rc1 {[%clk 0:01:01]}  b6 {[%clk 0:00:12]} 26. b4 {[%clk 0:00:54]}  Qxb4 {[%clk 0:00:10]} 27. Be4 {[%clk 0:00:51]}  Rh6 {[%clk 0:00:09]} 28. Qf5 {[%clk 0:00:44]}  Nd7 {[%clk 0:00:06]} 29. Qxf7+ {[%clk 0:00:42]}  Kd6 {[%clk 0:00:05]} 30. Bf5 {[%clk 0:00:37]}  Rd8 {[%clk 0:00:04]} 31. Bxd7 {[%clk 0:00:27]}  Rxd7 {[%clk 0:00:05]} 32. Rf6+ {[%clk 0:00:27]}  Rxf6 {[%clk 0:00:04]} 33. Qxf6+ {[%clk 0:00:26]}  Kc7 {[%clk 0:00:05]} 34. Qc6+ {[%clk 0:00:22]}  Kb8 {[%clk 0:00:05]} 35. Qxd7 {[%clk 0:00:20]}  Qd2 {[%clk 0:00:05]} 36. Qe8+ {[%clk 0:00:17]}  Ka7 {[%clk 0:00:04]} 37. Rf1 {[%clk 0:00:15]}  Qd3 {[%clk 0:00:04]} 38. Rf7# {[%clk 0:00:14]} 1-0


[Site "https://www.chess.com"]

[Event "Titled Tuesday Blitz March 22 Late 2022"]
[White "Andreikin, Dmitry"]
[Black "Hakobyan, Aram"]
[WhiteFideId "4158814"]
[BlackFideId "13306677"]
[WhiteElo "2736"]
[BlackElo "2557"]
[Result "1/2-1/2"]
[Round "05"]
[TimeControl "180+1"]
[Date "2022.03.22"]
[WhiteClock "0:00:04"]
[BlackClock "0:00:09"]

1. d4 {[%clk 0:03:00]}  Nf6 {[%clk 0:02:57]} 2. Nf3 {[%clk 0:02:59]}  e6 {[%clk 0:02:57]} 3. c4 {[%clk 0:02:58]}  d5 {[%clk 0:02:56]} 4. g3 {[%clk 0:02:58]}  Be7 {[%clk 0:02:55]} 5. Bg2 {[%clk 0:02:58]}  O-O {[%clk 0:02:55]} 6. O-O {[%clk 0:02:59]}  dxc4 {[%clk 0:02:56]} 7. Qc2 {[%clk 0:02:59]}  b5 {[%clk 0:02:56]} 8. a4 {[%clk 0:02:57]}  b4 {[%clk 0:02:56]} 9. Nfd2 {[%clk 0:02:56]}  Nd5 {[%clk 0:02:55]} 10. Nxc4 {[%clk 0:02:52]}  c5 {[%clk 0:02:55]} 11. dxc5 {[%clk 0:02:47]}  Bxc5 {[%clk 0:02:54]} 12. e4 {[%clk 0:02:37]}  Nb6 {[%clk 0:02:42]} 13. Rd1 {[%clk 0:02:34]}  N8d7 {[%clk 0:02:38]} 14. Be3 {[%clk 0:02:23]}  Qe7 {[%clk 0:02:33]} 15. Nbd2 {[%clk 0:02:13]}  Ba6 {[%clk 0:02:30]} 16. Nxb6 {[%clk 0:02:12]}  axb6 {[%clk 0:02:30]} 17. Bxc5 {[%clk 0:02:06]}  Nxc5 {[%clk 0:02:27]} 18. Nc4 {[%clk 0:01:57]}  Qc7 {[%clk 0:02:23]} 19. Nd6 {[%clk 0:01:49]}  e5 {[%clk 0:02:02]} 20. f4 {[%clk 0:01:48]}  Rad8 {[%clk 0:01:11]} 21. fxe5 {[%clk 0:01:47]}  Qe7 {[%clk 0:01:11]} 22. Rd5 {[%clk 0:01:47]}  Bc8 {[%clk 0:01:09]} 23. a5 {[%clk 0:01:22]}  Be6 {[%clk 0:01:09]} 24. axb6 {[%clk 0:01:13]}  Bxd5 {[%clk 0:01:09]} 25. Nf5 {[%clk 0:01:13]}  Qxe5 {[%clk 0:01:06]} 26. exd5 {[%clk 0:01:02]}  Nd7 {[%clk 0:01:00]} 27. b7 {[%clk 0:00:58]}  g6 {[%clk 0:01:00]} 28. Nh6+ {[%clk 0:00:55]}  Kg7 {[%clk 0:01:01]} 29. Ng4 {[%clk 0:00:55]}  Qd4+ {[%clk 0:00:57]} 30. Nf2 {[%clk 0:00:56]}  Rfe8 {[%clk 0:00:53]} 31. d6 {[%clk 0:00:47]}  Qxd6 {[%clk 0:00:50]} 32. Rd1 {[%clk 0:00:43]}  Qb6 {[%clk 0:00:48]} 33. Qc6 {[%clk 0:00:42]}  Qxc6 {[%clk 0:00:32]} 34. Bxc6 {[%clk 0:00:43]}  Nc5 {[%clk 0:00:33]} 35. Bxe8 {[%clk 0:00:20]}  Rxe8 {[%clk 0:00:34]} 36. Nd3 {[%clk 0:00:19]}  Nxb7 {[%clk 0:00:28]} 37. Nxb4 {[%clk 0:00:20]}  Nc5 {[%clk 0:00:26]} 38. Nd5 {[%clk 0:00:19]}  Re2 {[%clk 0:00:20]} 39. b4 {[%clk 0:00:20]}  Ne4 {[%clk 0:00:18]} 40. Nf4 {[%clk 0:00:11]}  Rb2 {[%clk 0:00:17]} 41. Nd3 {[%clk 0:00:12]}  Rb3 {[%clk 0:00:16]} 42. Kf1 {[%clk 0:00:11]}  Nf6 {[%clk 0:00:12]} 43. Ke1 {[%clk 0:00:08]}  Ng4 {[%clk 0:00:02]} 44. Kd2 {[%clk 0:00:07]}  Nxh2 {[%clk 0:00:01]} 45. Kc2 {[%clk 0:00:07]}  Ra3 {[%clk 0:00:02]} 46. b5 {[%clk 0:00:08]}  Ra8 {[%clk 0:00:02]} 47. b6 {[%clk 0:00:07]}  Rb8 {[%clk 0:00:03]} 48. Rb1 {[%clk 0:00:08]}  Ng4 {[%clk 0:00:04]} 49. Kc3 {[%clk 0:00:07]}  Nf6 {[%clk 0:00:03]} 50. Kd4 {[%clk 0:00:07]}  Nd7 {[%clk 0:00:02]} 51. b7 {[%clk 0:00:07]}  Kf8 {[%clk 0:00:02]} 52. Nc5 {[%clk 0:00:07]}  Ke7 {[%clk 0:00:02]} 53. Na6 {[%clk 0:00:07]}  Rd8 {[%clk 0:00:03]} 54. Kc4 {[%clk 0:00:05]}  Nb8 {[%clk 0:00:03]} 55. Nxb8 {[%clk 0:00:05]}  Rxb8 {[%clk 0:00:04]} 56. Kc5 {[%clk 0:00:05]}  Kf6 {[%clk 0:00:04]} 57. Kd6 {[%clk 0:00:05]}  Kg5 {[%clk 0:00:05]} 58. Kc7 {[%clk 0:00:05]}  Rxb7+ {[%clk 0:00:05]} 59. Rxb7 {[%clk 0:00:06]}  Kg4 {[%clk 0:00:05]} 60. Kd6 {[%clk 0:00:06]}  Kxg3 {[%clk 0:00:04]} 61. Rxf7 {[%clk 0:00:07]}  h5 {[%clk 0:00:04]} 62. Rg7 {[%clk 0:00:06]}  h4 {[%clk 0:00:05]} 63. Rxg6+ {[%clk 0:00:06]}  Kf3 {[%clk 0:00:06]} 64. Rh6 {[%clk 0:00:06]}  Kg3 {[%clk 0:00:07]} 65. Ke5 {[%clk 0:00:07]}  h3 {[%clk 0:00:07]} 66. Ke4 {[%clk 0:00:07]}  h2 {[%clk 0:00:07]} 67. Ke3 {[%clk 0:00:06]}  Kg2 {[%clk 0:00:08]} 68. Rg6+ {[%clk 0:00:06]}  Kf1 {[%clk 0:00:08]} 69. Rh6 {[%clk 0:00:05]}  Kg2 {[%clk 0:00:08]} 70. Rg6+ {[%clk 0:00:05]}  Kf1 {[%clk 0:00:08]} 71. Rf6+ {[%clk 0:00:06]}  Kg2 {[%clk 0:00:08]} 72. Rf2+ {[%clk 0:00:05]}  Kg1 {[%clk 0:00:08]} 73. Rxh2 {[%clk 0:00:04]}  Kxh2 {[%clk 0:00:09]} 1/2-1/2


[Site "https://www.chess.com"]

[Event "Titled Tuesday Blitz March 22 Late 2022"]
[White "Baches Garcia, Guillermo"]
[Black "Nazaretyan, Tigran"]
[WhiteFideId "2209764"]
[BlackFideId "24162345"]
[WhiteElo "2469"]
[BlackElo "2219"]
[Result "1-0"]
[Round "05"]
[TimeControl "180+1"]
[Date "2022.03.22"]
[WhiteClock "0:00:51"]
[BlackClock "0:01:02"]

1. e4 {[%clk 0:03:00]}  c5 {[%clk 0:02:59]} 2. Nf3 {[%clk 0:03:01]}  Nc6 {[%clk 0:02:58]} 3. d4 {[%clk 0:02:59]}  cxd4 {[%clk 0:02:58]} 4. Nxd4 {[%clk 0:03:00]}  Nf6 {[%clk 0:02:58]} 5. Nc3 {[%clk 0:03:00]}  d6 {[%clk 0:02:58]} 6. Nd5 {[%clk 0:03:00]}  e6 {[%clk 0:02:56]} 7. Nxf6+ {[%clk 0:03:00]}  Qxf6 {[%clk 0:02:55]} 8. Nb5 {[%clk 0:02:59]}  Qd8 {[%clk 0:02:55]} 9. c4 {[%clk 0:02:59]}  a6 {[%clk 0:02:54]} 10. Nc3 {[%clk 0:02:58]}  Be7 {[%clk 0:02:50]} 11. Be2 {[%clk 0:02:58]}  O-O {[%clk 0:02:49]} 12. O-O {[%clk 0:02:58]}  b6 {[%clk 0:02:38]} 13. Be3 {[%clk 0:02:58]}  Ne5 {[%clk 0:02:38]} 14. Qb3 {[%clk 0:02:48]}  Nd7 {[%clk 0:02:37]} 15. Rfd1 {[%clk 0:02:45]}  Qc7 {[%clk 0:02:36]} 16. Rd2 {[%clk 0:02:42]}  Nc5 {[%clk 0:02:35]} 17. Qd1 {[%clk 0:02:39]}  Bb7 {[%clk 0:02:34]} 18. f3 {[%clk 0:02:40]}  Rfd8 {[%clk 0:02:29]} 19. Rc1 {[%clk 0:02:38]}  Rac8 {[%clk 0:02:28]} 20. Kh1 {[%clk 0:02:35]}  h6 {[%clk 0:02:27]} 21. Qg1 {[%clk 0:02:33]}  Bf6 {[%clk 0:02:22]} 22. b4 {[%clk 0:02:15]}  Nd7 {[%clk 0:02:18]} 23. Na4 {[%clk 0:02:08]}  b5 {[%clk 0:02:14]} 24. Nb6 {[%clk 0:02:07]}  Rb8 {[%clk 0:02:01]} 25. cxb5 {[%clk 0:01:57]}  Qxc1 {[%clk 0:01:42]} 26. Qxc1 {[%clk 0:01:55]}  Nxb6 {[%clk 0:01:42]} 27. Bxb6 {[%clk 0:01:54]}  Rdc8 {[%clk 0:01:42]} 28. Rc2 {[%clk 0:01:49]}  axb5 {[%clk 0:01:42]} 29. Rc7 {[%clk 0:01:21]}  Bd8 {[%clk 0:01:23]} 30. Rxc8 {[%clk 0:01:16]}  Rxc8 {[%clk 0:01:23]} 31. Qxc8 {[%clk 0:01:16]}  Bxc8 {[%clk 0:01:23]} 32. Bxd8 {[%clk 0:01:16]}  Bd7 {[%clk 0:01:24]} 33. Be7 {[%clk 0:01:14]}  d5 {[%clk 0:01:23]} 34. exd5 {[%clk 0:01:13]}  exd5 {[%clk 0:01:24]} 35. Bd3 {[%clk 0:01:11]}  f5 {[%clk 0:01:23]} 36. Kg1 {[%clk 0:01:06]}  Kf7 {[%clk 0:01:23]} 37. Bc5 {[%clk 0:01:06]}  Ke6 {[%clk 0:01:23]} 38. f4 {[%clk 0:01:06]}  g5 {[%clk 0:01:23]} 39. g3 {[%clk 0:01:06]}  g4 {[%clk 0:01:22]} 40. Kf2 {[%clk 0:01:06]}  h5 {[%clk 0:01:22]} 41. Ke3 {[%clk 0:01:05]}  Bc6 {[%clk 0:01:22]} 42. Kd4 {[%clk 0:01:03]}  Bd7 {[%clk 0:01:22]} 43. Bc2 {[%clk 0:01:02]}  Bc6 {[%clk 0:01:21]} 44. a3 {[%clk 0:01:02]}  Be8 {[%clk 0:01:21]} 45. Bb3 {[%clk 0:01:01]}  Bc6 {[%clk 0:01:20]} 46. Bb6 {[%clk 0:01:01]}  Kd6 {[%clk 0:01:20]} 47. Bd8 {[%clk 0:01:00]}  Bb7 {[%clk 0:01:19]} 48. Bf6 {[%clk 0:01:00]}  Ke6 {[%clk 0:01:01]} 49. Be5 {[%clk 0:01:00]}  Ba8 {[%clk 0:01:02]} 50. Bc2 {[%clk 0:01:00]}  Bb7 {[%clk 0:01:01]} 51. Bd3 {[%clk 0:01:00]}  Bc6 {[%clk 0:01:01]} 52. Kc5 {[%clk 0:00:59]}  Be8 {[%clk 0:01:01]} 53. Bxb5 {[%clk 0:00:59]}  d4 {[%clk 0:01:00]} 54. Bxe8 {[%clk 0:00:56]}  d3 {[%clk 0:01:01]} 55. Bb5 {[%clk 0:00:53]}  d2 {[%clk 0:01:01]} 56. Bc4+ {[%clk 0:00:53]}  Ke7 {[%clk 0:01:00]} 57. Bb3 {[%clk 0:00:52]}  h4 {[%clk 0:01:01]} 58. gxh4 {[%clk 0:00:51]}  g3 {[%clk 0:01:02]} 59. hxg3 {[%clk 0:00:51]}  d1=N {[%clk 0:01:02]} 60. Bxd1 {[%clk 0:00:51]} 1-0


[Site "https://www.chess.com"]

[Event "Titled Tuesday Blitz March 22 Late 2022"]
[White "Bernal Moro, Luis Javier"]
[Black "Koutlas, Nikolaos"]
[WhiteFideId "2200236"]
[BlackFideId "25827138"]
[WhiteElo "2373"]
[BlackElo "1610"]
[Result "0-1"]
[Round "05"]
[TimeControl "180+1"]
[Date "2022.03.22"]
[WhiteClock "0:00:05"]
[BlackClock "0:01:06"]

1. Nf3 {[%clk 0:02:59]}  Nf6 {[%clk 0:02:59]} 2. c4 {[%clk 0:02:58]}  g6 {[%clk 0:02:58]} 3. Nc3 {[%clk 0:02:58]}  Bg7 {[%clk 0:02:59]} 4. e4 {[%clk 0:02:58]}  d6 {[%clk 0:02:59]} 5. d4 {[%clk 0:02:58]}  O-O {[%clk 0:02:59]} 6. Be2 {[%clk 0:02:59]}  e5 {[%clk 0:02:59]} 7. O-O {[%clk 0:02:59]}  Nc6 {[%clk 0:03:00]} 8. d5 {[%clk 0:02:57]}  Ne7 {[%clk 0:03:00]} 9. Bd2 {[%clk 0:02:53]}  Nh5 {[%clk 0:02:57]} 10. g3 {[%clk 0:02:49]}  f5 {[%clk 0:02:57]} 11. Ng5 {[%clk 0:02:42]}  Nf6 {[%clk 0:02:46]} 12. Bf3 {[%clk 0:02:38]}  h6 {[%clk 0:02:41]} 13. Ne6 {[%clk 0:02:37]}  Bxe6 {[%clk 0:02:42]} 14. dxe6 {[%clk 0:02:37]}  c6 {[%clk 0:02:42]} 15. Be3 {[%clk 0:02:12]}  Nc8 {[%clk 0:02:21]} 16. c5 {[%clk 0:02:05]}  fxe4 {[%clk 0:02:08]} 17. Nxe4 {[%clk 0:01:53]}  d5 {[%clk 0:02:07]} 18. Nxf6+ {[%clk 0:01:36]}  Qxf6 {[%clk 0:02:08]} 19. Bg4 {[%clk 0:01:36]}  Ne7 {[%clk 0:02:06]} 20. Qb3 {[%clk 0:01:19]}  Rab8 {[%clk 0:01:58]} 21. Bd2 {[%clk 0:01:02]}  Nf5 {[%clk 0:01:53]} 22. Ba5 {[%clk 0:00:52]}  Qxe6 {[%clk 0:01:34]} 23. Bc7 {[%clk 0:00:51]}  Rbc8 {[%clk 0:01:33]} 24. Bd6 {[%clk 0:00:52]}  Rf7 {[%clk 0:01:30]} 25. Rae1 {[%clk 0:00:44]}  e4 {[%clk 0:01:15]} 26. f3 {[%clk 0:00:35]}  Bd4+ {[%clk 0:01:12]} 27. Kh1 {[%clk 0:00:22]}  h5 {[%clk 0:01:12]} 28. fxe4 {[%clk 0:00:16]}  hxg4 {[%clk 0:01:09]} 29. exf5 {[%clk 0:00:15]}  Rxf5 {[%clk 0:01:09]} 30. Qd1 {[%clk 0:00:06]}  Rxf1+ {[%clk 0:01:06]} 31. Rxf1 {[%clk 0:00:05]}  Qe4+ {[%clk 0:01:06]} 0-1


[Site "https://www.chess.com"]